bitfinex/quotes_BTCUSD_20250813
["timestamp","ask_amount","ask_price","bid_price","bid_amount"]
[1755073131506,12.21624408,119600.0,119590.0,0.64995374]
[1755073135591,12.21624408,119600.0,119590.0,0.95743564]
[1755073137908,12.21624408,119600.0,119590.0,0.90964564]
[1755073138099,12.21624408,119600.0,119590.0,0.91260564]
[1755073140479,12.21624408,119600.0,119590.0,0.80840564]
[1755073142065,12.21624408,119600.0,119590.0,0.80548374]
[1755073143079,12.21646408,119600.0,119590.0,0.80548374]
[1755073143645,12.21646408,119600.0,119590.0,0.80840564]
[1755073144481,12.21646408,119600.0,119590.0,0.60804564]
[1755073145219,12.23207957,119600.0,119590.0,0.60804564]
[1755073145598,12.23207957,119600.0,119590.0,0.91256564]
[1755073146323,12.23207957,119600.0,119590.0,0.90964374]
[1755073146767,12.23207957,119600.0,119590.0,1.73018848]
[1755073146768,12.19080455,119600.0,119590.0,1.73018848]
[1755073147194,12.19080455,119600.0,119590.0,1.62602848]
[1755073147446,12.17335553,119600.0,119590.0,1.62602848]
[1755073147678,12.09063228,119600.0,119590.0,1.62602848]
[1755073147892,12.09063228,119600.0,119590.0,1.63446157]
[1755073149656,12.09063228,119600.0,119590.0,1.43410157]
[1755073149869,12.09063228,119600.0,119590.0,0.66012683]
[1755073150083,12.09063228,119600.0,119590.0,1.77410157]
[1755073151041,12.96779929,119600.0,119590.0,0.47687995]
[1755073151266,12.98341945,119600.0,119590.0,0.60245995]
[1755073151692,12.20944471,119600.0,119590.0,0.80245995]
[1755073151898,12.98341945,119600.0,119590.0,0.80245995]
[1755073153162,12.98341945,119600.0,119590.0,1.30245995]
[1755073154408,12.20944471,119600.0,119590.0,1.30245995]
[1755073155676,12.20944471,119600.0,119590.0,1.60697995]
[1755073157196,12.20642471,119600.0,119590.0,1.60907995]
[1755073157406,12.20642471,119600.0,119590.0,2.28185469]
[1755073158089,12.18897569,119600.0,119590.0,2.12806469]
[1755073158504,12.20642471,119600.0,119590.0,2.12806469]
[1755073159746,12.20643232,119600.0,119590.0,2.12806469]
[1755073159977,12.20643232,119600.0,119590.0,2.07643469]
[1755073160112,12.20643205,119600.0,119590.0,1.30455995]
[1755073161293,12.20945205,119600.0,119590.0,1.10241995]
[1755073162035,12.20945258,119600.0,119590.0,1.10241995]
[1755073162766,12.20945266,119600.0,119590.0,1.10241995]
[1755073165461,12.20945266,119600.0,119590.0,1.20657995]
[1755073165667,12.20945266,119600.0,119590.0,1.40693995]
[1755073167002,12.20945266,119600.0,119590.0,1.07901995]
[1755073167003,13.88988657,119600.0,119590.0,1.07901995]
[1755073167210,14.22988657,119600.0,119590.0,1.27645805]
[1755073167415,14.22988657,119600.0,119590.0,1.20401805]
[1755073168762,14.2298814,119600.0,119590.0,1.20401805]
[1755073170434,12.68193192,119600.0,119590.0,1.20401805]
[1755073170636,14.2298814,119600.0,119590.0,1.20401805]
[1755073171720,14.2549474,119600.0,119590.0,1.20401805]
[1755073172511,14.2549474,119600.0,119590.0,1.07645805]
[1755073172739,14.2549474,119600.0,119590.0,1.20401805]
[1755073173003,14.2549474,119600.0,119590.0,1.07645805]
[1755073173201,14.2549474,119600.0,119590.0,1.20401805]
[1755073174563,14.2549474,119600.0,119590.0,1.20202648]
[1755073174968,14.25491835,119600.0,119590.0,1.20202648]
[1755073176940,14.34277835,119600.0,119590.0,1.20202648]
[1755073178124,14.34276768,119600.0,119590.0,1.20202648]
[1755073180488,14.34277256,119600.0,119590.0,0.87410648]
[1755073180645,14.34277256,119600.0,119590.0,1.10206648]
[1755073187609,14.34276481,119600.0,119590.0,1.10206648]
[1755073189230,12.79481533,119600.0,119590.0,1.10206648]
[1755073189437,14.34276481,119600.0,119590.0,1.10206648]
[1755073193871,14.34279002,119600.0,119590.0,1.10206648]
[1755073194486,14.34279002,119600.0,119590.0,0.99790648]
[1755073195211,14.36078549,119600.0,119590.0,0.99790648]
[1755073197185,14.36081422,119600.0,119590.0,0.99790648]
[1755073205268,14.36084549,119600.0,119590.0,0.99790648]
[1755073208386,14.36086479,119600.0,119590.0,0.99790648]
[1755073209445,14.36086479,119600.0,119590.0,0.87034648]
[1755073209619,14.36086479,119600.0,119590.0,0.99786648]
[1755073210144,14.36869527,119600.0,119590.0,0.99786648]
[1755073210366,14.36086479,119600.0,119590.0,0.99786648]
[1755073213606,14.38560523,119600.0,119590.0,0.99786648]
[1755073213811,14.56066041,119600.0,119590.0,0.98714609]
[1755073213990,14.39343633,119600.0,119590.0,0.98714609]
[1755073214399,14.38560523,119600.0,119590.0,0.79506403]
[1755073214607,14.56066632,119600.0,119590.0,0.78714026]
[1755073215128,14.39344224,119600.0,119590.0,0.78714026]
[1755073216303,12.84549276,119600.0,119590.0,0.78714026]
[1755073216514,14.39344224,119600.0,119590.0,0.78714026]
[1755073217527,14.39343328,119600.0,119590.0,0.78714026]
[1755073219747,14.39041328,119600.0,119590.0,0.78929026]
[1755073219958,13.52612689,119600.0,119590.0,0.79246026]
[1755073220174,13.50112689,119600.0,119590.0,0.79246026]
[1755073220384,13.50810015,119600.0,119590.0,0.79246026]
[1755073220593,14.28207489,119600.0,119590.0,0.79246026]
[1755073221855,13.50810015,119600.0,119590.0,0.79246026]
[1755073222305,13.59058458,119600.0,119590.0,0.79246026]
[1755073222530,14.41469932,119600.0,119590.0,0.66494026]
[1755073222677,14.36455932,119600.0,119590.0,0.79242026]
[1755073222858,14.36455932,119600.0,119590.0,0.78925026]
[1755073223066,14.36455932,119600.0,119590.0,0.66177026]
[1755073223269,14.36755932,119600.0,119590.0,0.78710026]
[1755073223472,14.36993735,119600.0,119590.0,0.78710026]
[1755073223671,14.38559025,119600.0,119590.0,0.78710026]
[1755073225371,14.38759025,119600.0,119590.0,0.80510026]
[1755073225823,14.38559025,119600.0,119590.0,0.78710026]
[1755073226242,14.38459025,119600.0,119590.0,0.81525026]
[1755073226383,14.38459025,119600.0,119590.0,0.81842026]
[1755073226597,13.59258306,119600.0,119590.0,0.81942026]
[1755073226988,13.47972306,119600.0,119590.0,0.86403026]
[1755073227162,13.50472306,119600.0,119590.0,0.86403026]
[1755073227915,13.50472306,119600.0,119590.0,0.96827026]
[1755073229469,14.2786978,119600.0,119590.0,0.96827026]
[1755073230077,14.2786978,119600.0,119590.0,0.92366026]
[1755073230540,14.2786978,119600.0,119590.0,0.92049026]
[1755073231091,12.73074832,119600.0,119590.0,0.92049026]
[1755073231296,14.2786978,119600.0,119590.0,0.92049026]
[1755073232557,14.19621337,119600.0,119590.0,0.92345026]
[1755073232787,14.19621337,119600.0,119590.0,0.81921026]
[1755073232946,14.18056047,119600.0,119590.0,0.81921026]
[1755073233142,14.19621034,119600.0,119590.0,0.81921026]
[1755073233412,13.4222356,119600.0,119590.0,0.81921026]
[1755073233832,13.50472003,119600.0,119590.0,0.81921026]
[1755073234396,14.27869477,119600.0,119590.0,0.81921026]
[1755073234991,14.27869477,119600.0,119590.0,0.81625026]
[1755073235562,14.28181475,119600.0,119590.0,0.81410026]
[1755073236329,14.36973475,119600.0,119590.0,0.66262026]
[1755073236530,14.36973475,119600.0,119590.0,0.79010026]
[1755073237218,14.38776427,119600.0,119590.0,0.79010026]
[1755073237443,14.39159358,119600.0,119590.0,0.79010026]
[1755073237643,14.40962315,119600.0,119590.0,0.79010026]
[1755073238075,12.8436441,119600.0,119590.0,0.79010026]
[1755073238285,14.36973475,119600.0,119590.0,0.79010026]
[1755073238496,14.36973475,119600.0,119590.0,0.79209026]
[1755073238497,13.48515558,119600.0,119590.0,0.79209026]
[1755073238717,12.73618084,119600.0,119590.0,0.79505026]
[1755073238921,13.48515558,119600.0,119590.0,0.99505026]
[1755073239125,13.51015558,119600.0,119590.0,0.99505026]
[1755073239540,13.54866808,119600.0,119590.0,0.99505026]
[1755073239751,13.52366808,119600.0,119590.0,0.99505026]
[1755073240081,13.54866808,119600.0,119590.0,0.99505026]
[1755073241271,13.46074808,119600.0,119590.0,0.99505026]
[1755073242394,13.46074573,119600.0,119590.0,0.99505026]
[1755073243013,13.46074548,119600.0,119590.0,0.99505026]
[1755073243646,12.66177074,119600.0,119590.0,0.99505026]
[1755073243791,12.28325824,119600.0,119590.0,1.04110026]
[1755073244000,12.30825824,119600.0,119590.0,1.04110026]
[1755073244225,13.42223298,119600.0,119590.0,1.04110026]
[1755073245069,12.64825824,119600.0,119590.0,1.04110026]
[1755073245271,13.42223298,119600.0,119590.0,1.04110026]
[1755073246776,14.19620772,119600.0,119590.0,1.04110026]
[1755073246993,14.2274073,119600.0,119590.0,1.04110026]
[1755073247942,14.2274073,119600.0,119590.0,0.86461026]
[1755073248109,14.2305273,119600.0,119590.0,0.79006026]
[1755073251831,14.23067026,119600.0,119590.0,0.79006026]
[1755073253813,14.23067085,119600.0,119590.0,0.79006026]
[1755073254015,14.21503373,119600.0,119590.0,0.79006026]
[1755073254222,14.23067085,119600.0,119590.0,0.79006026]
[1755073256222,14.31859085,119600.0,119590.0,0.79006026]
[1755073256492,14.23067085,119600.0,119590.0,0.79006026]
[1755073259019,12.58079909,119600.0,119590.0,1.24106026]
[1755073259228,12.00391153,119600.0,119590.0,1.29501026]
[1755073259440,11.97516553,119600.0,119590.0,1.32120806]
[1755073259651,11.97516553,119600.0,119590.0,1.29793216]
[1755073260062,11.97316553,119600.0,119590.0,1.07553216]
[1755073260298,11.97316553,119600.0,119590.0,1.07053216]
[1755073260509,11.99161455,119600.0,119590.0,1.07653216]
[1755073260711,11.99161455,119600.0,119590.0,1.08153216]
[1755073260919,11.97516553,119600.0,119590.0,1.08953216]
[1755073261147,11.97516553,119600.0,119590.0,1.08453216]
[1755073261569,11.99361455,119600.0,119590.0,1.09253216]
[1755073263328,11.99361455,119600.0,119590.0,0.89249216]
[1755073264173,11.99361455,119600.0,119590.0,0.69249216]
[1755073264384,11.99361455,119600.0,119590.0,0.76509216]
[1755073264587,11.99361455,119600.0,119590.0,0.89249216]
[1755073264798,11.99361455,119600.0,119590.0,0.69249216]
[1755073265184,11.99361455,119600.0,119590.0,0.89249216]
[1755073265387,11.99361455,119600.0,119590.0,0.88953216]
[1755073265606,11.99361455,119600.0,119590.0,1.19413216]
[1755073266374,12.76766613,119600.0,119590.0,1.06673216]
[1755073266580,11.99361455,119600.0,119590.0,1.19413216]
[1755073269095,11.99361455,119600.0,119590.0,1.08993216]
[1755073269432,11.99361455,119600.0,119590.0,1.28993216]
[1755073269628,11.99361455,119600.0,119590.0,1.08953216]
[1755073275729,11.99361455,119600.0,119590.0,1.39405216]
[1755073279007,11.99361455,119600.0,119590.0,1.72851216]
[1755073279811,11.99361455,119600.0,119590.0,1.62435216]
[1755073282460,11.99668455,119600.0,119590.0,1.62435216]
[1755073283751,11.99668455,119600.0,119590.0,1.42399216]
[1755073285687,11.99668455,119600.0,119590.0,1.72847216]
[1755073288736,12.01231268,119600.0,119590.0,1.72847216]
[1755073289148,12.01231268,119600.0,119590.0,1.62431216]
[1755073289775,12.00924268,119600.0,119590.0,1.62431216]
[1755073290407,12.01237268,119600.0,119590.0,1.62431216]
[1755073290839,11.99674455,119600.0,119590.0,1.62431216]
[1755073291016,12.01238546,119600.0,119590.0,1.62431216]
[1755073293155,12.01238546,119600.0,119590.0,1.42399216]
[1755073295602,12.01238546,119600.0,119590.0,1.72847216]
[1755073298960,11.90908319,119600.0,119590.0,1.74158548]
[1755073299164,11.89344228,119600.0,119590.0,1.74158548]
[1755073299373,11.89344228,119600.0,119590.0,1.76663848]
[1755073299562,11.89344228,119600.0,119590.0,1.46215848]
[1755073300316,11.89244228,119600.0,119590.0,1.45123658]
[1755073300773,11.89044228,119600.0,119590.0,1.44815848]
[1755073301093,11.89044228,119600.0,119590.0,1.45415848]
[1755073302257,11.89044228,119600.0,119590.0,1.79415848]
[1755073305257,11.89357228,119600.0,119590.0,1.79415848]
[1755073305632,11.89357228,119600.0,119590.0,2.09863848]
[1755073310189,11.89357228,119600.0,119590.0,1.99447848]
[1755073312953,11.89357228,119600.0,119590.0,1.99248848]
[1755073314419,11.89357228,119600.0,119590.0,1.79216848]
[1755073315610,11.89357228,119600.0,119590.0,2.09664848]
[1755073315881,11.89044228,119600.0,119590.0,2.09664848]
[1755073316108,11.89044228,119600.0,119590.0,1.99248848]
[1755073317789,11.89044228,119600.0,119590.0,1.79216848]
[1755073319122,11.89357228,119600.0,119590.0,1.79216848]
[1755073321518,11.89044228,119600.0,119590.0,1.79216848]
[1755073322801,11.89044228,119600.0,119590.0,1.66476848]
[1755073323039,11.89044228,119600.0,119590.0,1.79208848]
[1755073324423,11.89346228,119600.0,119590.0,1.68804438]
[1755073324680,11.89346228,119600.0,119590.0,1.79208848]
[1755073325601,11.89346228,119600.0,119590.0,2.20072848]
[1755073326048,11.89044228,119600.0,119590.0,2.17929173]
[1755073326252,11.89044228,119600.0,119590.0,2.20256763]
[1755073327118,11.89044228,119600.0,119590.0,2.09040763]
[1755073327328,11.89044228,119600.0,119590.0,2.09740763]
[1755073328185,11.89044228,119600.0,119590.0,1.89108763]
[1755073328589,11.89044228,119600.0,119590.0,1.89308763]
[1755073329501,11.89044228,119600.0,119590.0,1.90876167]
[1755073330350,11.89044228,119600.0,119590.0,1.89308763]
[1755073330772,11.89044228,119600.0,119590.0,1.91808763]
[1755073331578,11.89044228,119600.0,119590.0,1.95270029]
[1755073331956,11.89044228,119600.0,119590.0,3.00729129]
[1755073332162,11.89044228,119600.0,119590.0,3.03229129]
[1755073332354,11.86515834,119600.0,119590.0,2.97315129]
[1755073332554,11.86515834,119600.0,119590.0,2.99560031]
[1755073332962,11.86515834,119600.0,119590.0,3.00260031]
[1755073333385,11.8561511,119600.0,119590.0,3.00260031]
[1755073335579,11.8561511,119600.0,119590.0,3.41108031]
[1755073337751,11.8561511,119600.0,119590.0,3.20284031]
[1755073339696,11.8561511,119600.0,119590.0,3.00260031]
[1755073340104,11.8561511,119600.0,119590.0,2.65737765]
[1755073340317,11.8561511,119600.0,119590.0,2.75751065]
[1755073340535,11.8561511,119600.0,119590.0,2.78251065]
[1755073342122,11.8561511,119600.0,119590.0,2.79922065]
[1755073342555,11.8561511,119600.0,119590.0,2.84936065]
[1755073343057,11.8561511,119600.0,119590.0,2.85923391]
[1755073343198,11.7561511,119600.0,119590.0,2.85923391]
[1755073345452,11.7561511,119600.0,119590.0,2.96335391]
[1755073345664,11.7561511,119600.0,119590.0,3.26771391]
[1755073346237,11.7561511,119600.0,119590.0,3.25151391]
[1755073346449,11.7561511,119600.0,119590.0,3.16359391]
[1755073350255,11.7592611,119600.0,119590.0,2.85923391]
[1755073351241,11.7592611,119600.0,119590.0,2.76435191]
[1755073351759,11.7561511,119600.0,119590.0,2.76435191]
[1755073352645,11.7561511,119600.0,119590.0,2.96435191]
[1755073352863,11.7561511,119600.0,119590.0,2.95735191]
[1755073353070,11.7561511,119600.0,119590.0,2.96535191]
[1755073353528,11.7561511,119600.0,119590.0,2.96035191]
[1755073353944,11.7561511,119600.0,119590.0,2.96435191]
[1755073355647,11.7561511,119600.0,119590.0,3.37271191]
[1755073356095,11.7561511,119600.0,119590.0,3.26863191]
[1755073356748,11.7561511,119600.0,119590.0,3.16455191]
[1755073358801,11.7561511,119600.0,119590.0,2.96435191]
[1755073358998,11.7334322,119600.0,119590.0,2.96435191]
[1755073360357,11.7365422,119600.0,119590.0,2.96435191]
[1755073360767,11.7365422,119600.0,119590.0,2.83711191]
[1755073360980,11.7365422,119600.0,119590.0,2.96431191]
[1755073361167,11.7365422,119600.0,119590.0,2.95443865]
[1755073361371,11.7365422,119600.0,119590.0,2.95931419]
[1755073361576,11.7365422,119600.0,119590.0,3.39143865]
[1755073362862,11.7334322,119600.0,119590.0,3.39143865]
[1755073363701,11.7334322,119600.0,119590.0,3.47935865]
[1755073363987,11.7334322,119600.0,119590.0,3.47683904]
[1755073364920,11.7334322,119600.0,119590.0,3.48303826]
[1755073365449,11.7334322,119600.0,119590.0,3.58711826]
[1755073365657,11.7334322,119600.0,119590.0,3.89139826]
[1755073368278,11.7334322,119600.0,119590.0,3.68323826]
[1755073368933,11.7365422,119600.0,119590.0,3.68323826]
[1755073369973,11.07340723,119600.0,119590.0,3.48303826]
[1755073370180,11.05874776,119600.0,119590.0,3.48303826]
[1755073371250,11.05874776,119600.0,119590.0,3.47903826]
[1755073371467,11.05874776,119600.0,119590.0,3.47803826]
[1755073371680,11.05874776,119600.0,119590.0,3.48703826]
[1755073374888,11.05874776,119600.0,119590.0,3.51203826]
[1755073375736,11.06185776,119600.0,119590.0,3.92039826]
[1755073376699,11.06185776,119600.0,119590.0,3.81631826]
[1755073378924,11.06185776,119600.0,119590.0,3.14704944]
[1755073379149,11.06185776,119600.0,119590.0,3.28463014]
[1755073379592,11.06185776,119600.0,119590.0,3.04651682]
[1755073380057,11.06185776,119600.0,119590.0,3.15747014]
[1755073380499,11.06185776,119600.0,119590.0,3.28463014]
[1755073380707,11.06185776,119600.0,119590.0,3.1767458]
[1755073380933,11.06185776,119600.0,119590.0,3.3039058]
[1755073381403,11.06185776,119600.0,119590.0,3.25963014]
[1755073381617,11.06185776,119600.0,119590.0,3.13247014]
[1755073381825,11.10826776,119600.0,119590.0,3.24218112]
[1755073382867,11.10826776,119600.0,119590.0,3.25963014]
[1755073383682,11.10826776,119600.0,119590.0,3.10747014]
[1755073383886,11.10826776,119600.0,119590.0,3.23463014]
[1755073384332,11.10826776,119600.0,119590.0,3.25963014]
[1755073385631,11.10826776,119600.0,119590.0,3.66795014]
[1755073387773,11.10826776,119600.0,119590.0,3.53887014]
[1755073388405,11.10546776,119600.0,119590.0,3.43463014]
[1755073388595,11.10546776,119600.0,119590.0,3.45963014]
[1755073389274,11.09586776,119600.0,119590.0,3.45963014]
[1755073391668,11.09586776,119600.0,119590.0,3.33247014]
[1755073391894,11.09586776,119600.0,119590.0,3.45963014]
[1755073395138,11.09586776,119600.0,119590.0,3.33247014]
[1755073395370,11.09586776,119600.0,119590.0,3.45963014]
[1755073395576,11.09586776,119600.0,119590.0,3.86795014]
[1755073397181,11.09586776,119600.0,119590.0,3.76387014]
[1755073397782,11.09586776,119600.0,119590.0,3.22279014]
[1755073397985,11.04945776,119600.0,119590.0,3.22279014]
[1755073398192,11.04634776,119600.0,119590.0,3.02263014]
[1755073398400,11.04634776,119600.0,119590.0,3.0419058]
[1755073398804,11.04947776,119600.0,119590.0,2.9147458]
[1755073399045,11.04947776,119600.0,119590.0,3.0419058]
[1755073399254,11.04634776,119600.0,119590.0,2.9147458]
[1755073399507,11.04634776,119600.0,119590.0,3.0419058]
[1755073400139,11.04947776,119600.0,119590.0,3.02263014]
[1755073400883,11.04947776,119600.0,119590.0,2.82267014]
[1755073401312,11.04947776,119600.0,119590.0,2.73475014]
[1755073402957,11.04947776,119600.0,119590.0,3.17175014]
[1755073403371,11.04947776,119600.0,119590.0,3.04455014]
[1755073403581,11.04947776,119600.0,119590.0,3.17171014]
[1755073404190,11.04237667,119600.0,119590.0,3.17171014]
[1755073405511,11.04237667,119600.0,119590.0,3.58003014]
[1755073409005,11.04237667,119600.0,119590.0,3.04455014]
[1755073409216,11.04237667,119600.0,119590.0,3.37187014]
[1755073410035,11.04237667,119600.0,119590.0,3.24471014]
[1755073410251,11.08503667,119600.0,119590.0,1.65627114]
[1755073410475,11.08503667,119600.0,119590.0,1.90477512]
[1755073410707,11.08503667,119600.0,119590.0,1.94722414]
[1755073411071,11.08503667,119600.0,119590.0,1.93822414]
[1755073411288,11.08503667,119600.0,119590.0,1.93122414]
[1755073411518,11.08503667,119600.0,119590.0,1.93922414]
[1755073411675,11.08503667,119600.0,119590.0,1.94122414]
[1755073414823,11.08503667,119600.0,119590.0,1.60013114]
[1755073415036,11.08503667,119600.0,119590.0,1.83374814]
[1755073415667,11.08503667,119600.0,119590.0,2.24210814]
[1755073415871,11.08503667,119600.0,119590.0,2.27281114]
[1755073416413,11.08503667,119600.0,119590.0,2.19373114]
[1755073417155,11.08503667,119600.0,119590.0,2.16536514]
[1755073418443,11.08503667,119600.0,119590.0,1.86108514]
[1755073422050,11.08503667,119600.0,119590.0,1.83608514]
[1755073422233,11.08103667,119600.0,119590.0,1.86108514]
[1755073422460,11.08103667,119600.0,119590.0,1.91122514]
[1755073423066,11.08103667,119600.0,119590.0,1.88622514]
[1755073423233,11.08103667,119600.0,119590.0,1.91122514]
[1755073425684,11.08103667,119600.0,119590.0,2.31958514]
[1755073426400,11.08103667,119600.0,119590.0,2.21550514]
[1755073426984,11.08103667,119600.0,119590.0,1.56221782]
[1755073427230,11.08103667,119600.0,119590.0,1.90249114]
[1755073427543,11.08103667,119600.0,119590.0,1.70229114]
[1755073428009,11.08103667,119600.0,119590.0,1.69229114]
[1755073428632,11.08103667,119600.0,119590.0,1.35229114]
[1755073429342,11.08103667,119600.0,119590.0,1.35829114]
[1755073429876,11.08103667,119600.0,119590.0,1.23113114]
[1755073430316,11.08103667,119600.0,119590.0,1.35829114]
[1755073430532,11.08103667,119600.0,119590.0,1.69829114]
[1755073432235,11.08103667,119600.0,119590.0,1.48517782]
[1755073432464,11.08103667,119600.0,119590.0,1.69829114]
[1755073434341,11.08103667,119600.0,119590.0,1.55368212]
[1755073434551,11.08103667,119600.0,119590.0,1.48517782]
[1755073434770,11.08103667,119600.0,119590.0,1.68084212]
[1755073435700,11.08103667,119600.0,119590.0,2.08928212]
[1755073436058,11.07966521,119600.0,119590.0,2.08928212]
[1755073436262,11.07966521,119600.0,119590.0,1.88104212]
[1755073437658,11.07966521,119600.0,119590.0,1.68084212]
[1755073438064,11.07966521,119600.0,119590.0,1.66413212]
[1755073440169,11.07966521,119600.0,119590.0,1.65813212]
[1755073440347,11.07966521,119600.0,119590.0,1.44824887]
[1755073440576,11.07966521,119600.0,119590.0,1.57940887]
[1755073442659,11.07966521,119600.0,119590.0,1.66213212]
[1755073442905,11.03700521,119600.0,119590.0,1.66213212]
[1755073443445,11.08090521,119600.0,119590.0,1.66213212]
[1755073445359,11.08090521,119600.0,119590.0,1.86213212]
[1755073445565,11.08090521,119600.0,119590.0,2.27061212]
[1755073449050,11.08090521,119600.0,119590.0,2.16649212]
[1755073449268,11.08090521,119600.0,119590.0,2.06237212]
[1755073453232,11.08090521,119600.0,119590.0,1.86213212]
[1755073455081,11.03700521,119600.0,119590.0,1.86213212]
[1755073455714,11.03700521,119600.0,119590.0,2.27061212]
[1755073456751,11.03700521,119600.0,119590.0,2.18394114]
[1755073460415,11.03700521,119600.0,119590.0,1.5220988]
[1755073460688,11.08090521,119600.0,119590.0,1.11224887]
[1755073460892,11.85371037,119600.0,119590.0,1.04994887]
[1755073461052,11.89253362,119600.0,119590.0,0.90574555]
[1755073461407,11.89253362,119600.0,119590.0,1.03290555]
[1755073463107,11.89253362,119600.0,119590.0,1.02890555]
[1755073463822,11.89353362,119600.0,119590.0,1.02890555]
[1755073464043,11.89253362,119600.0,119590.0,1.03190555]
[1755073464260,11.89653362,119600.0,119590.0,1.03190555]
[1755073464479,11.89653362,119600.0,119590.0,1.02890555]
[1755073464902,11.89653362,119600.0,119590.0,1.02990555]
[1755073465685,11.89653362,119600.0,119590.0,1.33430555]
[1755073469346,11.92497736,119600.0,119590.0,1.33430555]
[1755073469573,11.89653362,119600.0,119590.0,1.33430555]
[1755073470632,11.89653362,119600.0,119590.0,1.10302555]
[1755073470848,11.89653362,119600.0,119590.0,1.23170555]
[1755073471061,11.89653362,119600.0,119590.0,1.00637255]
[1755073472656,11.89653362,119600.0,119590.0,0.87769255]
[1755073472855,11.89653362,119600.0,119590.0,1.00629255]
[1755073473060,11.97901805,119600.0,119590.0,1.00629255]
[1755073473469,11.89653362,119600.0,119590.0,1.00629255]
[1755073473809,11.92105368,119600.0,119590.0,1.00529255]
[1755073474043,11.91705368,119600.0,119590.0,1.00529255]
[1755073474235,11.93262655,119600.0,119590.0,1.00529255]
[1755073474525,11.93362655,119600.0,119590.0,1.00529255]
[1755073475635,11.93362655,119600.0,119590.0,1.30977255]
[1755073475858,11.16082139,119600.0,119590.0,1.30977255]
[1755073476077,11.93362655,119600.0,119590.0,1.30977255]
[1755073476797,11.16082139,119600.0,119590.0,1.30977255]
[1755073477010,11.93362655,119600.0,119590.0,1.30977255]
[1755073477669,11.16082139,119600.0,119590.0,1.20561255]
[1755073477874,11.14524852,119600.0,119590.0,1.20561255]
[1755073478087,11.16081856,119600.0,119590.0,1.20561255]
[1755073479182,11.91805368,119600.0,119590.0,1.20561255]
[1755073479401,11.93362503,119600.0,119590.0,1.20561255]
[1755073479631,11.95185998,119600.0,119590.0,1.20561255]
[1755073479875,11.93362503,119600.0,119590.0,1.20561255]
[1755073480093,11.93362503,119600.0,119590.0,0.80529255]
[1755073480336,11.93362503,119600.0,119590.0,1.00529255]
[1755073482677,11.93362809,119600.0,119590.0,1.00529255]
[1755073483135,11.9336282,119600.0,119590.0,1.00529255]
[1755073484577,12.01611263,119600.0,119590.0,1.00529255]
[1755073485342,11.9336282,119600.0,119590.0,1.00529255]
[1755073485544,11.9336282,119600.0,119590.0,1.10945255]
[1755073485753,11.9336282,119600.0,119590.0,1.30977255]
[1755073488479,12.70643336,119600.0,119590.0,1.20561255]
[1755073488858,12.78891779,119600.0,119590.0,1.20561255]
[1755073489449,12.78891779,119600.0,119590.0,0.80529255]
[1755073489655,12.78791779,119600.0,119590.0,0.80529255]
[1755073489858,12.78791779,119600.0,119590.0,1.00529255]
[1755073490058,12.79091779,119600.0,119590.0,0.80529255]
[1755073490573,12.79091779,119600.0,119590.0,1.00529255]
[1755073491155,12.79091779,119600.0,119590.0,0.80529255]
[1755073491383,12.79091779,119600.0,119590.0,1.00529255]
[1755073491618,12.79091779,119600.0,119590.0,0.67669255]
[1755073491799,12.83341901,119600.0,119590.0,0.87669255]
[1755073492010,12.85841901,119600.0,119590.0,1.00233065]
[1755073492693,12.88348201,119600.0,119590.0,1.00233065]
[1755073494023,12.88347593,119600.0,119590.0,1.00233065]
[1755073494260,11.25538118,119600.0,119590.0,1.00233065]
[1755073494486,12.8009915,119600.0,119590.0,1.00233065]
[1755073494927,13.1409915,119600.0,119590.0,1.00233065]
[1755073495614,13.1409915,119600.0,119590.0,1.30685065]
[1755073496042,13.1379915,119600.0,119590.0,1.30685065]
[1755073496250,13.22047593,119600.0,119590.0,1.30685065]
[1755073496465,13.22347593,119600.0,119590.0,1.30685065]
[1755073501021,13.20785529,119600.0,119590.0,1.30685065]
[1755073501225,13.22346073,119600.0,119590.0,1.50685065]
[1755073502073,12.44752557,119600.0,119590.0,1.50685065]
[1755073502285,12.36504114,119600.0,119590.0,1.50900065]
[1755073502491,13.1378463,119600.0,119590.0,1.50900065]
[1755073502702,13.1378463,119600.0,119590.0,1.50685065]
[1755073504605,13.1378463,119600.0,119590.0,1.50900065]
[1755073504845,12.36504114,119600.0,119590.0,1.51193065]
[1755073505261,12.34004114,119600.0,119590.0,1.51193065]
[1755073505678,12.02504114,119600.0,119590.0,1.51193065]
[1755073505928,11.22723598,119600.0,119590.0,1.51193065]
[1755073506135,11.1352039,119600.0,119590.0,1.58150201]
[1755073506582,11.1352039,119600.0,119590.0,1.55559255]
[1755073507239,11.1322039,119600.0,119590.0,1.55559255]
[1755073507717,11.1322039,119600.0,119590.0,1.55659255]
[1755073508622,11.1322039,119600.0,119590.0,1.45243255]
[1755073509066,11.1322039,119600.0,119590.0,1.45343255]
[1755073509719,11.1322039,119600.0,119590.0,1.45243255]
[1755073509946,11.1322039,119600.0,119590.0,1.45343255]
[1755073511486,11.1322039,119600.0,119590.0,1.25307255]
[1755073512337,11.11659846,119600.0,119590.0,1.25307255]
[1755073512594,11.13219499,119600.0,119590.0,1.25307255]
[1755073513021,11.13219449,119600.0,119590.0,1.25307255]
[1755073513675,11.11659846,119600.0,119590.0,1.25307255]
[1755073515584,11.11659846,119600.0,119590.0,1.55759255]
[1755073517756,11.11659846,119600.0,119590.0,1.55467065]
[1755073518587,11.11659846,119600.0,119590.0,1.45051065]
[1755073522484,11.11659846,119600.0,119590.0,1.25015065]
[1755073524857,12.79021223,119600.0,119590.0,0.87577065]
[1755073525042,12.81521223,119600.0,119590.0,0.87577065]
[1755073525243,13.17080051,119600.0,119590.0,1.00409065]
[1755073525477,13.19586551,119600.0,119590.0,0.67360065]
[1755073525693,13.19586551,119600.0,119590.0,0.64362065]
[1755073525896,13.19586551,119600.0,119590.0,0.64162065]
[1755073526124,13.19586551,119600.0,119590.0,0.77002065]
[1755073526261,13.19986551,119600.0,119590.0,0.77002065]
[1755073526453,13.21790981,119600.0,119590.0,0.77002065]
[1755073526678,13.13542538,119600.0,119590.0,0.77002065]
[1755073526881,13.14042538,119600.0,119590.0,0.77002065]
[1755073527651,13.14042221,119600.0,119590.0,0.77002065]
[1755073529494,13.11837791,119600.0,119590.0,0.77002065]
[1755073530657,13.1027928,119600.0,119590.0,0.77002065]
[1755073530861,13.20085542,119600.0,119590.0,0.77002065]
[1755073531394,13.20085325,119600.0,119590.0,0.77002065]
[1755073533737,13.22612211,119600.0,119590.0,0.77002065]
[1755073533942,13.22611883,119600.0,119590.0,0.77002065]
[1755073535079,12.36775924,119600.0,119590.0,0.77002065]
[1755073535703,12.32531022,119600.0,119590.0,0.97002065]
[1755073535965,12.36775924,119600.0,119590.0,0.97002065]
[1755073536151,12.34269424,119600.0,119590.0,0.97517065]
[1755073536986,13.1154994,119600.0,119590.0,0.97302065]
[1755073537407,12.34269424,119600.0,119590.0,0.97302065]
[1755073538500,11.56988908,119600.0,119590.0,0.97302065]
[1755073538727,12.34269424,119600.0,119590.0,0.97302065]
[1755073538942,12.31269424,119600.0,119590.0,0.97302065]
[1755073539181,12.34169424,119600.0,119590.0,0.97517065]
[1755073540058,12.34168982,119600.0,119590.0,0.87101065]
[1755073540896,12.31668982,119600.0,119590.0,1.07101065]
[1755073541744,12.34168982,119600.0,119590.0,1.07101065]